Workbook

Sheet Sheet1
B1: Round 1 (AScargo) | C1: Round 2 (ASbridge) | D1: Round 3 (olcassault1) | E1: Round 4 (olcassault1) | F1: Round 5 (Fioas) | G1: Round 6 (ASFactory) | H1: Round 7 (onsdhills) | I1: Raw Score | J1: Weighted Score | K1: Event Points
A2: PurpleJazz | B2: 1 | C2: =2*1.1 -> 2.2 | D2: 1 | E2: 2 | F2: 2 | G2: =2*1.1 -> 2.2 | H2: 2 | I2: =SUM(B2:H2) -> 12.4 | J2: =(50/12.4)*I2 -> 50 | K2: 50 | L2: PurpleJazz
A3: Foly | B3: 2 | C3: =1*1.1 -> 1.1 | D3: 1 | E3: 2 | F3: 2 | G3: 2 | H3: 2 | I3: =SUM(B3:H3) -> 12.1 | J3: =(50/12.4)*I3 -> 48.79032258 | K3: 49 | L3: Foly
A4: Owen | B4: 2 | C4: 1 | D4: 2 | E4: 2 | F4: 1 | G4: 2 | H4: 2 | I4: =SUM(B4:H4) -> 12 | J4: 48.38709677 | K4: 48 | L4: Owen
A5: Sperry | B5: 2 | C5: 2 | D5: 1 | E5: 2 | F5: 2 | G5: 1 | H5: 2 | I5: =SUM(B5:H5) -> 12 | J5: 48.38709677 | K5: 48 | L5: Sperry
A6: Treylina | B6: 2 | C6: 2 | D6: 2 | E6: 2 | F6: 1 | G6: 1 | H6: 2 | I6: =SUM(B6:H6) -> 12 | J6: 48.38709677 | K6: 48 | L6: Treylina
A7: ThunderWalker | B7: =2*1.1 -> 2.2 | C7: 2 | D7: 1 | E7: 1 | F7: 1 | G7: 2 | H7: 2 | I7: =SUM(B7:H7) -> 11.2 | J7: 45.16129032 | K7: 45 | L7: ThunderWalker
A8: SuperJazz | B8: 2 | C8: 2 | D8: 1 | E8: 2 | F8: 2 | G8: 1 | H8: 1 | I8: =SUM(B8:H8) -> 11 | J8: 44.35483871 | K8: 44 | L8: SuperJazz
A9: Slaz | B9: 1 | C9: 2 | D9: 2 | E9: 2 | F9: 1 | G9: 1 | H9: 2 | I9: =SUM(B9:H9) -> 11 | J9: 44.35483871 | K9: 44 | L9: Slaz
A10: Loon | B10: 1 | C10: 2 | D10: 2 | E10: 1 | F10: 1 | G10: 2 | H10: 2 | I10: =SUM(B10:H10) -> 11 | J10: 44.35483871 | K10: 44 | L10: Loon
A11: Vegito | B11: 1 | C11: 1 | D11: 2 | E11: 1 | F11: =2*1.1 -> 2.2 | G11: 2 | H11: 1 | I11: =SUM(B11:H11) -> 10.2 | J11: 41.12903226 | K11: 41 | L11: Vegito
A12: Snooze | B12: 2 | C12: 2 | D12: 1 | E12: 1 | F12: 1 | G12: 2 | H12: 1 | I12: =SUM(B12:H12) -> 10 | J12: 40.32258065 | K12: 40 | L12: Snooze
A13: Moti | B13: 2 | C13: 1 | D13: 2 | E13: 1 | F13: 1 | G13: 1 | H13: 2 | I13: =SUM(B13:H13) -> 10 | J13: 40.32258065 | K13: 40 | L13: Moti
A14: Rose | B14: 0 | C14: 1 | D14: 2 | E14: 2 | F14: 2 | G14: 2 | H14: 1 | I14: =SUM(B14:H14) -> 10 | J14: 40.32258065 | K14: 40 | L14: Rose
A15: AhMo | B15: =1/2 -> 0.5 | C15: 2 | D15: 1 | E15: 1 | F15: 2 | G15: 2 | H15: 1 | I15: =SUM(B15:H15) -> 9.5 | J15: 38.30645161 | K15: 38 | L15: AhMo
A16: Spazix | B16: 2 | C16: 1 | D16: 2 | E16: 1 | F16: 1 | G16: =1*1.1 -> 1.1 | H16: 1 | I16: =SUM(B16:H16) -> 9.1 | J16: 36.69354839 | K16: 37 | L16: Spazix
A17: Lithium | B17: 2 | C17: 2 | D17: 2 | E17: 2 | F17: 1 | G17: 0 | H17: 0 | I17: =SUM(B17:H17) -> 9 | J17: 36.29032258 | K17: 36 | L17: Lithium
A18: Emesewolf | B18: 1 | C18: 1 | D18: 2 | E18: 1 | F18: 2 | G18: 1 | H18: 1 | I18: =SUM(B18:H18) -> 9 | J18: 36.29032258 | K18: 36 | L18: Emesewolf
A19: Quickz | B19: =1*1.1 -> 1.1 | C19: 1 | D19: 1 | E19: 1 | F19: 1 | G19: 1 | H19: =2*1.1 -> 2.2 | I19: =SUM(B19:H19) -> 8.3 | J19: 33.46774194 | K19: 33 | L19: Quickz
A20: RabidRabb | B20: 1 | C20: 1 | D20: 1 | E20: 1 | F20: 2 | G20: 1 | H20: 1 | I20: =SUM(B20:H20) -> 8 | J20: 32.25806452 | K20: 32 | L20: RabidRabb
A21: Riko | B21: 0 | C21: =2/2 -> 1 | D21: 2 | E21: 2 | F21: 2 | G21: 0 | H21: 0 | I21: =SUM(B21:H21) -> 7 | J21: 28.22580645 | K21: 28 | L21: Riko
A22: CelL | B22: 1 | C22: 2 | D22: 1 | E22: 1 | F22: 1 | G22: 0 | H22: 0 | I22: =SUM(B22:H22) -> 6 | J22: 24.19354839 | K22: 24 | L22: CelL
A23: Aimane | B23: 0 | C23: 1 | D23: 1 | E23: 2 | F23: 2 | G23: 0 | H23: 0 | I23: =SUM(B23:H23) -> 6 | J23: 24.19354839 | K23: 24 | L23: Aimane
A24: Lahm | B24: 0 | C24: 0 | D24: 0 | E24: 0 | F24: 0 | G24: 2 | H24: 1 | I24: =SUM(B24:H24) -> 3 | J24: 12.09677419 | K24: 12 | L24: Lahm
A25: DarkSonic | B25: 0 | C25: 0 | D25: 0 | E25: 0 | F25: 0 | G25: 2 | H25: 1 | I25: =SUM(B25:H25) -> 3 | J25: 12.09677419 | K25: 12 | L25: DarkSonic
A26: Toni | B26: 2 | C26: 0 | D26: 0 | E26: 0 | F26: 0 | G26: 0 | H26: 0 | I26: =SUM(B26:H26) -> 2 | J26: 8.064516129 | K26: 8 | L26: Toni
A27: Dragon | B27: 2 | C27: 0 | D27: 0 | E27: 0 | F27: 0 | G27: 0 | H27: 0 | I27: =SUM(B27:H27) -> 2 | J27: 8.064516129 | K27: 8 | L27: Dragon
A28: Plumbe | B28: 1 | C28: 0 | D28: 0 | E28: 0 | F28: 0 | G28: 0 | H28: 0 | I28: =SUM(B28:H28) -> 1 | J28: 4.032258065 | K28: 4 | L28: Plumbe
A29: Krytical | B29: 1 | C29: 0 | D29: 0 | E29: 0 | F29: 0 | G29: 0 | H29: 0 | I29: =SUM(B29:H29) -> 1 | J29: 4.032258065 | K29: 4 | L29: Krytical
A30: cooba | B30: 0 | C30: 1 | D30: 0 | E30: 0 | F30: 0 | G30: 0 | H30: 0 | I30: =SUM(B30:H30) -> 1 | J30: 4.032258065 | K30: 4 | L30: cooba
A31: Ninja | B31: =1/2 -> 0.5 | C31: 0 | D31: 0 | E31: 0 | F31: 0 | G31: 0 | H31: 0 | I31: =SUM(B31:H31) -> 0.5 | J31: 2.016129032 | K31: 2 | L31: Ninja
